bitfinex-derivatives/quotes_ETHF0:USTF0_20251006
["timestamp","ask_amount","ask_price","bid_price","bid_amount"]
[1759736587849,0.3172,4539.4,4539.1,40.8]
[1759736588156,3.4288,4539.8,4539.2,0.39642]
[1759736588457,3.4288,4539.8,4539.3,0.39641]
[1759736588658,0.3172,4539.7,4539.4,0.3964]
[1759736588858,3.746,4539.8,4539.5,0.39639]
[1759736589057,3.746,4539.8,4539.1,40.8]
[1759736589358,3.4288,4539.8,4539.6,0.71858]
[1759736589551,3.4288,4539.8,4539.6,0.3222]
[1759736589747,3.4288,4539.8,4539.6,0.71858]
[1759736589950,3.746,4539.8,4539.6,0.71858]
[1759736590356,3.746,4539.8,4539.7,40.8]
[1759736590558,3.525,4539.8,4539.7,40.8]
[1759736590759,3.525,4539.8,4539.7,41.1222]
[1759736591064,3.2078,4539.8,4539.7,41.1222]
[1759736594961,0.5382,4540.3,4539.8,0.99093]
[1759736595153,0.5382,4540.3,4540.0,0.39634]
[1759736595354,0.3172,4540.2,4539.5,0.99098]
[1759736595557,3.525,4539.8,4539.7,0.39637]
[1759736595760,0.3172,4539.8,4539.7,0.39637]
[1759736595960,0.3172,4539.8,4539.7,41.19637]
[1759736596953,0.3172,4539.8,4539.7,41.51857]
[1759736598263,3.4288,4540.3,4539.8,0.3261]
[1759736598462,3.7462,4540.3,4540.2,0.39633]
[1759736598659,0.3174,4540.2,4540.0,0.39635]
[1759736599260,0.3174,4540.2,4539.7,41.1261]
[1759736599454,3.4288,4540.3,4539.8,0.39637]
[1759736599455,0.1333,4540.0,4539.8,0.39637]
[1759736599654,0.1333,4540.0,4539.7,40.8]
[1759736599655,3.2078,4540.3,4540.2,0.72243]
[1759736599858,3.5252,4540.8,4540.3,0.3261]
[1759736600157,3.5252,4540.8,4540.6,0.3963]
[1759736600355,0.3174,4540.7,4540.6,0.6173]
[1759736600759,0.3174,4540.7,4539.9,3.2078]
[1759736600959,3.2078,4540.8,4539.4,3.2078]
[1759736600960,0.3174,4539.9,4539.4,3.2078]
[1759736601159,0.1333,4540.0,4539.5,0.221]
[1759736601360,0.1333,4540.0,4539.0,0.1225]
[1759736601361,3.5252,4539.9,4539.0,0.1225]
[1759736601569,3.2078,4539.9,4539.6,40.8]
[1759736601763,0.3174,4539.7,4539.6,40.8]
[1759736602159,0.3174,4539.8,4539.7,0.39638]
[1759736603562,0.3174,4539.8,4539.6,41.19638]
[1759736603767,0.3174,4539.9,4539.6,41.19638]
[1759736603967,0.3174,4539.9,4539.6,41.52248]
[1759736604273,0.3174,4539.9,4539.6,41.1261]
[1759736604466,0.1333,4540.0,4539.6,41.1261]
[1759736604660,0.1333,4540.0,4539.7,0.39637]
[1759736605065,0.3174,4539.9,4539.7,0.39637]
[1759736605461,0.3174,4539.9,4539.7,0.72247]
[1759736605866,0.3174,4539.7,4539.6,40.8]
[1759736608370,3.5252,4539.9,4539.8,0.3261]
[1759736608578,3.2078,4539.9,4539.8,0.3261]
[1759736609667,3.5252,4539.9,4539.8,0.221]
[1759736609863,3.5252,4539.9,4539.8,0.5471]
[1759736610069,3.5252,4539.9,4539.8,0.221]
[1759736610275,3.5252,4539.9,4539.8,0.6548]
[1759736610476,3.7298,4539.9,4539.8,0.6548]
[1759736610674,3.7298,4539.9,4539.8,0.4338]
[1759736611064,3.7298,4539.9,4539.8,0.7599]
[1759736611672,3.7298,4539.9,4539.8,0.9809]
[1759736611872,3.7298,4539.9,4539.8,0.6548]
[1759736612678,3.9555,4539.9,4539.8,0.2256]
[1759736612877,0.7477,4539.8,4539.7,0.221]
[1759736613177,0.3174,4539.7,4539.6,40.8]
[1759736613378,0.3174,4539.7,4539.6,41.021]
[1759736613677,0.3174,4539.7,4539.6,40.8]
[1759736613874,0.3174,4539.7,4539.6,41.021]
[1759736614073,0.3174,4539.7,4539.6,41.3561]
[1759736614273,0.3199011,4539.7,4539.6,41.35789254]
[1759736614975,0.0025011,4539.7,4539.6,41.13689254]
[1759736615173,0.0025011,4539.7,4539.6,41.35789254]
[1759736615773,3.514,4540.6,4540.5,0.4398]
[1759736616078,3.9589,4540.6,4540.5,0.4398]
[1759736616678,3.9589,4540.6,4540.5,0.7749]
[1759736617180,3.96159806,4540.6,4540.5,0.7749]
[1759736617375,3.96159806,4540.6,4540.5,41.5749]
[1759736618281,3.96159806,4540.6,4540.5,41.41921]
[1759736618782,3.96159806,4540.6,4540.5,41.75431]
[1759736619181,3.21049806,4540.6,4540.5,41.579]
[1759736619483,3.51669806,4540.6,4540.5,41.579]
[1759736620075,3.51669806,4540.6,4540.5,41.2439]
[1759736620280,3.51669806,4540.6,4540.5,41.0229]
[1759736621775,3.51669806,4540.6,4540.5,41.358]
[1759736621980,3.51669806,4540.6,4540.5,41.0229]
[1759736625078,0.2239,4540.2,4540.1,0.4439]
[1759736625284,0.5301,4540.2,4540.1,1.05714]
[1759736625580,0.5301,4540.2,4540.1,41.7959]
[1759736626173,0.2239,4539.9,4539.8,0.2229]
[1759736626378,4.56266,4539.9,4539.8,0.2229]
[1759736626577,4.1663,4539.9,4539.8,0.2229]
[1759736626780,4.1663,4539.9,4539.8,40.8]
[1759736629589,0.4293,4539.7,4539.6,0.00179254]
[1759736629887,0.9873,4539.7,4539.6,0.00179254]
[1759736631586,5.9873,4539.7,4539.6,0.00179254]
[1759736632082,0.4293,4538.3,4537.5,3.3063]
[1759736632286,0.61086,4537.6,4537.5,0.2053]
[1759736632485,0.7703,4537.6,4537.5,0.2053]
[1759736632684,0.9853,4537.6,4537.5,0.2053]
[1759736633089,0.9853,4537.6,4537.5,0.20788363]
[1759736633289,4.1931,4537.6,4537.5,0.20788363]
[1759736634791,4.1931,4537.6,4537.5,0.00258363]
[1759736635297,4.1931,4537.6,4537.5,40.80258363]
[1759736635493,4.1931,4537.6,4537.5,0.00258363]
[1759736635688,4.1931,4537.6,4537.5,0.20788363]
[1759736635886,4.58966,4537.6,4537.5,0.20788363]
[1759736636799,4.58966,4537.6,4537.5,0.00258363]
[1759736638088,4.1931,4537.6,4537.5,0.00258363]
[1759736638493,4.1931,4537.6,4537.5,0.20788363]
[1759736639194,0.5513,4537.9,4537.8,0.4195]
[1759736639597,0.7723,4537.9,4537.8,0.4195]
[1759736639993,0.9873,4537.9,4537.8,0.4195]
[1759736640698,0.39653,4538.0,4537.8,0.4195]
[1759736640893,0.5513,4538.0,4537.9,0.7578]
[1759736641098,0.6776,4538.0,4537.9,0.7578]
[1759736641301,0.5513,4538.0,4537.9,0.7578]
[1759736641594,3.2078,4538.1,4537.9,0.81603]
[1759736641796,3.2078,4538.1,4538.0,0.8593]
[1759736642188,3.2078,4538.1,4538.0,41.6593]
[1759736642393,3.7658,4538.1,4538.0,40.8]
[1759736643394,0.558,4538.1,4538.0,40.8]
[1759736644696,0.221,4538.1,4538.0,41.1383]
[1759736644892,3.2078,4538.6,4538.5,0.3383]
[1759736645093,3.2078,4538.6,4538.5,0.7578]
[1759736645602,0.221,4539.1,4539.0,0.4195]
[1759736645898,0.221,4539.1,4539.0,0.7578]
[1759736646094,0.221,4539.1,4539.0,41.5578]
[1759736646297,0.558,4539.1,4539.0,41.5578]
[1759736647105,0.558,4539.1,4539.0,41.2195]
[1759736647499,3.7658,4539.1,4539.0,41.2195]
[1759736649600,0.39644,4539.0,4538.6,0.3383]
[1759736649806,0.8926,4538.5,4538.4,0.2053]
[1759736650196,0.8926,4538.5,4538.4,41.0053]
[1759736650409,1.51009,4538.5,4538.4,41.0053]
[1759736651009,1.51009,4538.5,4538.4,41.3436]
[1759736651409,1.1136,4538.5,4538.4,41.0053]
[1759736652113,0.82581,4538.2,4538.1,0.2053]
[1759736652314,1.16281,4538.2,4538.1,0.2053]
[1759736652610,1.16281,4538.2,4538.1,40.8]
[1759736652911,1.16286,4537.6,4537.5,0.00258363]
[1759736653113,4.59166,4537.6,4537.5,3.63e-06]
[1759736655510,4.82721301,4538.5,4537.5,3.63e-06]
[1759736655511,0.337,4538.8,4538.7,0.7578]
[1759736655909,0.558,4538.8,4538.7,0.7578]
[1759736656110,0.558,4538.8,4538.7,41.5578]
[1759736656311,0.558,4538.8,4538.7,41.2195]
[1759736658020,0.558,4538.8,4538.7,40.8]
[1759736658718,1.40256,4538.8,4538.7,0.2095]
[1759736658916,0.4481,4537.9,4537.8,3.4173]
[1759736659114,0.4481,4537.9,4537.5,3.63e-06]
[1759736659115,0.39656,4537.6,4537.5,3.63e-06]
[1759736659317,0.221,4537.6,4537.5,3.63e-06]
[1759736659822,0.5576,4537.6,4537.5,40.80000363]
[1759736661016,0.5576,4537.6,4537.5,3.63e-06]
[1759736661217,0.221,4537.6,4537.5,3.63e-06]
[1759736662024,0.5576,4537.6,4537.5,3.63e-06]
[1759736662622,0.221,4537.6,4537.5,3.63e-06]
[1759736662821,0.7839,4537.6,4537.5,0.75420363]
[1759736663123,1.0057,4537.6,4537.5,0.20950363]
[1759736663925,0.6691,4537.6,4537.5,3.63e-06]
[1759736664530,0.6691,4537.6,4537.5,0.20950363]
[1759736664919,1.0057,4537.6,4537.5,0.42810363]
[1759736665521,0.7839,4537.6,4537.5,0.75420363]
[1759736665820,0.5576,4537.6,4537.5,0.75420363]
[1759736666017,0.39654,4537.9,4537.5,0.75420363]
[1759736666018,3.2078,4538.3,4537.6,0.3261]
[1759736666227,3.2078,4538.3,4538.2,0.7542]
[1759736666726,3.2078,4538.3,4538.2,46.5542]
[1759736667029,3.4288,4538.8,4538.7,0.7542]
[1759736667328,3.2078,4538.8,4538.7,0.7542]
[1759736667916,3.2078,4538.8,4538.7,41.5542]
[1759736668317,3.5444,4538.8,4538.7,41.2281]
[1759736669028,3.5444,4538.8,4538.7,41.5542]
[1759736669526,0.5576,4539.2,4539.1,0.7542]
[1759736669826,1.0057,4539.2,4539.1,0.4281]
[1759736670221,1.0057,4539.2,4539.1,0.7542]
[1759736670526,0.5629,4538.3,4538.2,0.7542]
[1759736670726,0.3366,4538.3,4538.2,0.7542]
[1759736670924,0.7847,4538.3,4538.2,0.4281]
[1759736671126,0.7847,4538.3,4538.2,41.2281]
[1759736672130,0.5629,4538.3,4538.2,41.2281]
[1759736672629,0.3366,4538.3,4538.2,41.5542]
[1759736672822,0.4612,4538.5,4538.2,41.2281]
[1759736673023,0.4612,4538.5,4538.4,0.4281]
[1759736673222,0.6875,4538.5,4538.4,0.4281]
[1759736673418,0.3366,4537.6,4537.5,3.63e-06]
[1759736673619,0.221,4537.7,4537.5,41.12610363]
[1759736673820,0.221,4537.7,4537.6,0.72166]
[1759736674021,0.221,4537.7,4537.6,0.3251]
[1759736674621,0.3061,4538.2,4537.6,5.3251]
[1759736674830,0.221,4538.5,4538.0,0.3251]
[1759736675030,1.05089,4538.5,4537.9,0.72163]
[1759736675219,1.05089,4538.5,4537.9,0.3251]
[1759736675419,0.6544,4538.5,4537.9,0.72163]
[1759736675731,0.6544,4538.5,4537.9,0.3251]
[1759736675925,0.3061,4538.5,4538.2,0.3251]
[1759736676132,3.2078,4538.6,4538.2,0.3251]
[1759736676430,0.3061,4538.4,4537.8,0.94264]
[1759736676730,0.3061,4538.4,4537.9,0.39653]
[1759736676925,3.2078,4538.6,4538.2,0.3251]
[1759736677231,3.5139,4538.6,4538.5,0.72158]
[1759736677429,3.5139,4538.6,4538.2,0.221]
[1759736677626,0.3061,4538.5,4538.2,0.5461]
[1759736677827,0.5284,4538.5,4538.4,0.2174]
[1759736678029,0.5284,4538.5,4538.4,0.4353]
[1759736678232,0.5284,4538.5,4538.4,0.7604]
[1759736678532,0.3061,4538.5,4538.4,41.1251]
[1759736678931,3.5139,4538.6,4538.5,0.4353]
[1759736679234,3.9589,4538.6,4538.5,0.2174]
[1759736679432,0.4334,4538.5,4538.4,40.8]
[1759736679732,0.6544,4538.5,4538.4,40.8]
[1759736680238,0.5284,4537.9,4537.8,0.4353]
[1759736680430,0.7511,4537.9,4537.8,0.2174]
[1759736680625,0.7511,4537.9,4537.8,41.0174]
[1759736681334,0.7511,4537.9,4537.8,41.3425]
[1759736681535,0.7511,4537.9,4537.8,41.0174]
[1759736682428,0.5284,4537.9,4537.8,41.3425]
[1759736683032,0.5284,4537.9,4537.8,41.0174]
[1759736684035,0.5284,4537.9,4537.8,41.3425]
[1759736684627,3.2078,4538.1,4537.8,41.3425]
[1759736684831,3.2078,4538.1,4538.0,0.8822]
[1759736685028,3.2078,4538.8,4538.7,0.3251]
[1759736685231,3.2078,4538.8,4538.7,1.15687]
[1759736685932,3.2078,4538.8,4538.7,41.95687]
[1759736687030,0.3061,4538.9,4538.8,0.3251]
[1759736687231,0.3061,4538.9,4538.8,0.7604]
[1759736688236,0.221,4539.0,4538.9,0.84555]
[1759736688439,0.5286,4539.0,4538.9,1.17175]
[1759736688638,0.7393,4539.0,4538.9,0.7753]
[1759736688838,1.0708,4539.0,4538.9,0.2226]
[1759736690040,1.0708,4539.0,4538.9,0.4491]
[1759736692037,0.5286,4539.0,4538.9,0.7753]
[1759736692239,0.221,4539.0,4538.9,0.7753]
[1759736692544,0.7393,4539.0,4538.9,0.7753]
[1759736693943,0.221,4539.0,4538.9,0.7753]
[1759736694337,0.2107,4539.4,4539.3,0.4491]
[1759736694537,0.7222,4539.4,4539.3,0.4491]
[1759736694936,0.7222,4539.4,4539.3,0.7753]
[1759736695439,3.3351,4540.0,4539.8,0.2226]
[1759736695642,3.2078,4540.0,4539.9,0.3262]
[1759736695834,3.2078,4540.0,4539.9,0.7753]
[1759736696037,3.73909806,4540.6,4540.5,0.7753]
[1759736696232,0.22369806,4540.6,4540.5,0.7753]
[1759736696844,0.22369806,4540.6,4540.5,41.5753]
[1759736697040,0.53129806,4540.6,4540.5,41.2491]
[1759736697438,0.53129806,4540.6,4540.5,41.5753]
[1759736697642,0.22369806,4540.6,4540.5,41.5753]
[1759736698344,0.31029806,4540.6,4540.5,41.2491]
[1759736698743,0.31029806,4540.6,4540.5,41.4701]
[1759736699139,0.31029806,4540.6,4540.5,41.7963]
[1759736699334,0.31029806,4540.6,4540.5,41.4701]
[1759736699941,0.31029806,4540.6,4540.5,41.2436]
[1759736700243,8.51809806,4540.6,4539.4,0.3262]
[1759736700446,0.8498,4539.5,4539.4,0.4491]
[1759736700745,0.5183,4539.0,4538.9,0.7753]
[1759736700941,0.3076,4539.5,4539.4,0.7753]
[1759736701243,1.2462,4539.5,4539.1,0.221]
[1759736701539,1.2462,4539.5,4539.4,40.8]
[1759736701740,0.39642,4539.3,4538.7,3.534]
[1759736702046,0.3076,4539.4,4538.8,0.221]
[1759736702242,0.4146,4539.3,4539.2,0.2226]
[1759736702436,0.7222,4539.3,4539.2,0.2226]
[1759736702745,0.7222,4539.1,4539.0,40.8]
[1759736702942,3.2078,4539.4,4539.3,0.4491]
[1759736703242,0.2107,4539.1,4539.0,40.8]
[1759736703649,0.5183,4539.1,4539.0,41.1262]
[1759736705048,0.5183,4539.1,4539.0,0.7753]
[1759736705246,0.5422,4538.5,4537.5,3.63e-06]
[1759736705548,0.39656,4537.7,4537.5,3.63e-06]
[1759736706142,0.3076,4537.6,4537.5,3.63e-06]
[1759736706348,0.3076,4537.6,4536.5,3.2604]
[1759736706349,0.3076,4536.6,4536.5,3.2078]
[1759736706645,0.3076,4536.6,4535.7,0.3262]
[1759736706646,0.3076,4536.4,4535.9,0.122]
[1759736706846,0.52426,4536.5,4535.9,0.122]
[1759736707051,0.52427,4536.5,4535.9,0.122]
[1759736707248,0.31042522,4536.5,4536.0,0.3967]
[1759736707550,0.3076,4536.3,4536.0,0.3262]
[1759736707751,0.39667,4536.4,4536.0,0.3262]
[1759736707949,0.3076,4536.1,4536.0,0.3262]
[1759736708145,0.221,4536.3,4535.9,0.0017137]
[1759736708346,0.4352,4536.0,4535.9,0.0017137]
[1759736709248,0.39677,4535.3,4534.8,0.3262]
[1759736709445,0.39677,4535.3,4534.6,0.1]
[1759736709446,0.3076,4535.2,4534.6,0.1]
[1759736709644,0.3076,4535.2,4534.6,0.39682]
[1759736709846,0.3076,4535.2,4534.9,40.8]
[1759736710147,0.3076,4535.0,4534.9,40.8]
[1759736710356,3.5154,4535.3,4535.1,0.3262]
[1759736710653,0.3076,4535.3,4535.2,0.3262]
[1759736710852,0.221,4535.5,4535.2,0.3262]
[1759736711053,0.221,4535.5,4535.3,0.3262]
[1759736711252,0.3076,4535.5,4535.1,0.39677]
[1759736711452,0.5286,4535.9,4535.2,0.72297]
[1759736711950,3.5154,4536.1,4535.7,0.39672]
[1759736712149,0.3076,4536.4,4536.2,0.3262]
[1759736712347,0.00282522,4536.5,4536.4,0.39667]
[1759736712553,0.00282522,4536.5,4536.4,0.72287]
[1759736712744,0.00282522,4536.5,4536.4,5.5472]
[1759736712950,0.43802522,4536.5,4536.4,40.8]
[1759736713149,0.39668,4536.2,4535.1,0.39677]
[1759736713344,0.1276,4536.0,4535.3,0.39676]
[1759736713550,0.1276,4536.0,4535.2,0.221]
[1759736713756,3.4288,4536.1,4535.7,40.8]
[1759736713951,3.4288,4536.1,4535.8,0.3262]
[1759736714156,0.3076,4535.8,4535.7,40.8]
[1759736715357,0.221,4536.1,4535.7,41.19672]
[1759736715655,0.00282522,4536.5,4535.8,0.3262]
[1759736715859,0.00282522,4536.5,4536.4,0.3262]
[1759736716054,0.31042522,4536.5,4536.3,0.39667]
[1759736716556,0.00282522,4536.5,4536.4,41.1262]
[1759736718152,0.84738522,4536.5,4536.4,40.8]
[1759736719354,0.71267,4536.4,4535.8,0.39672]
[1759736719551,0.316,4535.8,4535.1,0.3207]
[1759736719862,0.316,4535.3,4535.2,40.8]
[1759736721956,0.316,4535.3,4535.1,0.39678]
[1759736722151,0.316,4535.3,4535.1,0.71748]
[1759736722557,0.316,4535.3,4535.1,40.8]
[1759736722863,0.316,4535.1,4534.9,0.00252814]
[1759736723062,0.71279,4535.1,4534.9,0.00252814]
[1759736723363,0.316,4535.0,4534.9,40.80252814]
[1759736723967,0.316,4534.9,4534.2,0.3207]
[1759736724155,0.39684,4534.5,4534.2,0.3207]
[1759736724466,0.316,4534.4,4534.3,40.8]
[1759736725155,0.316,4534.4,4534.3,40.80226305]
[1759736726157,3.2078,4534.9,4534.7,0.39682]
[1759736726362,0.221,4535.2,4534.7,0.39682]
[1759736726562,0.221,4535.2,4534.3,40.80226305]
[1759736726563,3.2078,4534.9,4534.3,40.80226305]
[1759736726758,0.316,4534.8,4534.4,0.221]
[1759736726967,0.316,4534.7,4534.3,40.80226305]
[1759736727161,0.221,4534.8,4534.3,40.80226305]
[1759736727354,0.221,4534.8,4534.3,41.12296305]
[1759736727963,0.221,4534.8,4534.3,41.51981305]
[1759736728162,0.316,4534.7,4534.4,0.3207]
[1759736728767,0.316,4534.7,4534.5,0.3207]
[1759736729462,3.2078,4534.9,4534.6,0.39682]
[1759736729664,0.221,4535.1,4534.7,0.3207]
[1759736729867,0.4479,4535.0,4534.3,41.12296305]
[1759736730068,0.4479,4535.0,4534.4,0.221]
[1759736730263,0.4479,4535.0,4534.3,41.12296305]
[1759736730461,0.39683,4534.6,4534.3,40.80226305]
[1759736730661,0.4479,4534.5,4534.3,40.80226305]
[1759736730857,0.316,4534.4,4534.3,40.80226305]
[1759736731968,0.316,4534.5,4534.3,41.12296305]
[1759736732368,0.316,4534.4,4534.3,41.12296305]
[1759736732565,0.316,4534.4,4534.3,40.80226305]
[1759736733064,0.316,4534.4,4533.4,3.60472]
[1759736733065,0.316,4533.5,4533.4,3.2078]
[1759736733265,3.2078,4533.7,4532.9,3.55056118]
[1759736733565,3.5238,4533.1,4533.0,40.8]
[1759736733871,0.84486,4533.0,4532.9,0.02206118]
[1759736734066,0.84725663,4533.0,4532.9,0.02415658]
[1759736734364,0.00239663,4533.0,4532.9,0.02415658]
[1759736734573,0.22339663,4533.0,4532.9,0.35845658]
[1759736734757,0.00239663,4533.0,4532.9,0.35845658]
[1759736735163,0.00239663,4533.0,4532.9,41.15845658]
[1759736736170,0.00239663,4533.0,4532.9,41.37945658]
[1759736737265,0.00239663,4533.0,4532.9,46.37945658]
[1759736738965,0.00239663,4533.0,4532.9,41.15845658]
[1759736739168,0.34219663,4533.0,4532.9,41.15845658]
[1759736739372,0.00239663,4533.0,4532.9,41.15845658]
[1759736739965,0.00239663,4533.0,4532.9,41.37945658]
[1759736740165,0.00239663,4533.0,4532.9,44.58725658]
[1759736740365,3.2078,4533.7,4533.1,0.3343]
[1759736740667,3.2078,4533.7,4533.6,0.3343]
[1759736741371,3.20990447,4533.7,4533.6,41.1343]
[1759736743074,3.54970447,4533.7,4533.6,40.8]
[1759736743276,0.3398,4532.9,4532.0,0.3343]
[1759736743464,0.3398,4532.4,4531.5,0.93849]
[1759736743670,0.3398,4532.1,4531.6,40.8]
[1759736743865,3.2078,4532.2,4531.6,40.8]
[1759736744076,0.3398,4532.4,4532.1,0.39704]
[1759736744268,0.221,4532.7,4532.1,0.22357015]
[1759736744573,0.221,4532.7,4532.1,0.00257015]
[1759736744771,0.3398,4532.2,4532.1,0.00257015]
[1759736745272,3.5476,4532.2,4532.1,0.00257015]
[1759736746069,0.3398,4532.2,4532.1,0.00257015]
[1759736746265,0.4717,4532.5,4532.1,0.00257015]
[1759736746474,0.3398,4532.4,4532.1,0.00257015]
[1759736747065,0.1319,4532.5,4532.1,0.00257015]
[1759736747268,0.3398,4532.5,4532.3,0.39702]
[1759736747471,0.3398,4532.5,4532.4,0.3343]
[1759736747982,3.2078,4532.8,4532.3,0.3067]
[1759736748176,3.2078,4532.8,4532.7,0.3067]
[1759736748971,3.91778,4532.8,4532.7,40.8]
[1759736749372,0.1305,4532.5,4532.1,0.00257015]
[1759736749573,0.3525,4532.5,4532.1,0.00257015]
[1759736749770,0.222,4532.5,4532.2,41.1067]
[1759736749974,3.4298,4532.8,4532.6,0.397]
[1759736750175,0.313,4533.1,4532.9,0.39697]
[1759736750379,3.2078,4533.5,4532.9,0.5287]
[1759736750680,3.2078,4533.5,4532.6,3.2078]
[1759736750681,3.3383,4533.5,4533.2,0.3067]
[1759736750878,0.313,4533.4,4532.6,3.2078]
[1759736751187,0.313,4533.2,4532.6,0.397]
[1759736751374,0.222,4533.1,4532.6,0.397]
[1759736751679,0.313,4532.9,4532.8,0.39698]
[1759736752384,0.4435,4533.0,4532.3,3.7365]
[1759736752578,0.313,4532.9,4532.7,0.39699]
[1759736752779,0.313,4532.9,4532.8,0.39697]
[1759736753073,0.222,4533.1,4532.8,0.70368]
[1759736753280,0.1305,4533.0,4532.4,0.3067]
[1759736753483,0.313,4532.4,4532.1,0.00257015]
[1759736753681,0.313,4532.4,4532.2,0.39703]
[1759736754385,3.2078,4533.0,4532.9,0.3067]
[1759736754590,3.6513,4533.5,4532.9,0.70367]
[1759736754880,3.3383,4533.5,4533.1,0.70365]
[1759736755078,0.313,4533.3,4533.2,40.8]
[1759736755280,3.5208,4533.5,4533.3,0.70363]
[1759736755477,0.4449,4534.0,4533.6,0.3067]
[1759736755682,0.313,4533.4,4533.2,44.0078]
[1759736755883,0.313,4533.4,4533.2,41.19694]
[1759736756084,0.313,4533.4,4533.2,40.8]
[1759736756289,0.313,4533.4,4533.2,41.1067]
[1759736756488,0.313,4533.6,4533.3,0.3067]
[1759736756683,0.535,4534.1,4533.6,0.3067]
[1759736757084,0.61887,4534.1,4533.3,0.5287]
[1759736757279,0.313,4533.6,4533.4,0.39693]
[1759736757679,0.1305,4534.0,4533.2,44.0078]
[1759736757680,0.4435,4534.0,4533.6,0.39691]
[1759736757886,0.4435,4534.0,4533.6,0.70361]
[1759736758192,0.1305,4534.0,4533.6,0.3067]
[1759736758391,0.31510447,4533.7,4533.6,0.70361]
[1759736758590,0.00210447,4533.7,4533.6,0.70361]
[1759736759087,0.00210447,4533.7,4533.6,0.92561]
[1759736759593,0.00210447,4533.7,4532.7,3.2078]
[1759736759891,0.1305,4533.5,4532.9,0.39697]
[1759736760087,0.1305,4533.5,4533.0,0.222]
[1759736760285,0.313,4533.4,4532.3,0.3067]
[1759736760590,0.1305,4532.5,4532.2,3.2078]
[1759736760786,0.313,4532.4,4532.3,0.3067]
[1759736760991,3.2078,4533.0,4532.5,0.1017]
[1759736761188,0.313,4533.4,4532.9,3.2078]
[1759736761491,0.52742,4533.5,4532.9,3.2078]
[1759736761492,0.1305,4533.5,4533.1,0.3067]
[1759736761880,0.313,4533.4,4533.0,40.8]
[1759736762087,0.1305,4533.5,4533.0,40.8]
[1759736762386,0.52743,4533.5,4533.0,40.8]
[1759736762592,0.313,4533.3,4533.0,40.8]
[1759736762992,0.1305,4533.5,4533.1,0.39696]
[1759736763192,0.1305,4533.5,4533.0,41.1067]
[1759736763390,0.313,4533.6,4533.4,0.70362]
[1759736763598,0.00210447,4533.7,4533.0,41.022]
[1759736763599,0.00210447,4533.7,4533.6,0.3067]
[1759736763891,0.00210447,4533.7,4533.6,0.5287]
[1759736764092,0.00210447,4533.7,4533.5,0.39692]
[1759736764294,0.313,4533.6,4533.5,0.70362]
[1759736764693,0.00210447,4533.7,4533.6,0.3067]
[1759736765089,0.00210447,4533.7,4533.6,0.5287]
[1759736765891,0.00210447,4533.7,4533.6,5.5287]
[1759736766288,3.2078,4534.4,4533.7,0.99226]
[1759736766490,3.2078,4534.9,4534.1,0.3067]
[1759736766695,3.2078,4534.9,4534.2,0.222]
[1759736766994,0.313,4534.8,4534.2,0.61886]
[1759736767191,0.313,4534.8,4533.9,0.3067]
[1759736767390,0.00209574,4534.8,4534.4,0.70354]
[1759736767585,0.313,4534.7,4534.6,0.39682]
[1759736767790,0.00209574,4534.8,4534.7,0.3067]
[1759736767991,0.31509574,4534.8,4534.7,0.3067]
[1759736768295,0.1305,4534.5,4533.8,0.3067]
[1759736768491,0.313,4534.4,4533.8,0.3067]
[1759736768686,0.313,4534.4,4533.8,0.70359]
[1759736768890,0.313,4534.4,4533.6,0.222]
[1759736769092,0.313,4534.4,4534.3,0.3067]
[1759736769592,0.00209574,4534.8,4534.5,0.39683]
[1759736769897,0.00209574,4534.8,4534.6,0.39682]
[1759736770091,0.00209574,4534.8,4534.7,0.3067]
[1759736771598,0.00209574,4534.8,4534.7,41.1067]
[1759736772700,0.313,4535.9,4535.6,0.3067]
[1759736773202,0.313,4535.9,4535.5,0.39674]
[1759736773401,0.313,4535.9,4535.3,0.39676]
[1759736773598,0.31518032,4535.9,4535.3,0.00176339]
[1759736774102,0.71189032,4535.9,4535.3,0.00176339]
[1759736774401,3.5208,4535.4,4535.3,0.00176339]
[1759736774594,3.7428,4535.4,4535.3,0.00176339]
[1759736774998,3.5208,4535.4,4535.3,0.00176339]
[1759736775696,0.313,4535.4,4535.3,0.00176339]
[1759736776298,3.5208,4535.4,4535.3,0.00176339]
[1759736776698,0.70981,4534.8,4534.7,40.8]
[1759736776999,0.1305,4535.0,4533.9,3.2078]
[1759736777000,0.52734,4534.5,4533.9,3.2078]
[1759736777195,0.4435,4534.0,4533.9,3.2078]
[1759736777501,0.4435,4534.0,4533.9,44.0078]
[1759736777703,0.4435,4534.0,4533.9,40.80253105]
[1759736778601,0.313,4534.0,4533.9,40.80253105]
[1759736778899,3.2078,4535.6,4534.6,0.3103]
[1759736779101,3.2078,4535.6,4535.1,0.3103]
[1759736779301,0.3241,4535.4,4534.6,0.3103]
[1759736779598,0.3241,4535.4,4534.9,0.3968]
[1759736779903,0.3241,4535.4,4535.0,0.39678]
[1759736780298,0.1273,4535.5,4535.0,0.39678]
[1759736780597,0.3241,4535.4,4534.7,0.222]
[1759736780798,3.2078,4535.6,4535.5,0.39675]
[1759736781000,0.00218032,4535.9,4535.5,0.39675]
[1759736781001,0.00218032,4535.9,4535.8,0.3103]
[1759736781503,0.00218032,4535.9,4535.8,41.1103]
[1759736783905,0.00218032,4535.9,4535.8,41.3323]
[1759736784403,0.32628032,4535.9,4535.8,40.8]
[1759736784697,0.3241,4536.7,4535.8,41.1103]
[1759736784905,0.3241,4536.7,4536.0,0.3103]